fUST/lending_fUST_20240720
["ID","MTS","AMOUNT","RATE_DAILY","PERIOD"]
[332654846,1721406430758,-500.0,0.00019178,2]
[332654847,1721406430780,-507.34904429,0.00019178,2]
[332654848,1721406430802,-346.16693877,0.00019178,2]
[332654849,1721406430823,-508.21145126,0.00019178,2]
[332654850,1721406430844,-500.0,0.00019178,2]
[332654851,1721406430866,-501.4357722,0.00019178,2]
[332654852,1721406430888,-500.0,0.00019178,2]
[332654853,1721406430911,-500.0,0.00019178,2]
[332654854,1721406430934,-500.0,0.00019178,2]
[332654855,1721406430956,-500.0,0.00019178,2]
[332654856,1721406430980,-500.0,0.00019178,2]
[332654857,1721406431001,-500.0,0.00019178,2]
[332654858,1721406431025,-500.0,0.00019178,2]
[332654859,1721406431047,-500.0,0.00019178,2]
[332654860,1721406431068,-501.40445756,0.00019178,2]
[332654861,1721406431091,-500.0,0.00019178,2]
[332654862,1721406431113,-501.13418141,0.00019178,2]
[332654863,1721406431135,-301.2515248,0.00019178,2]
[332654864,1721406431157,-500.0,0.00019178,2]
[332654865,1721406431178,-500.0,0.00019178,2]
[332654866,1721406431200,-500.0,0.00019178,2]
[332654867,1721406431222,-260.65655222,0.00019178,2]
[332654868,1721406431243,-500.0,0.00019178,2]
[332654869,1721406431265,-500.0,0.00019178,2]
[332654870,1721406431285,-500.0,0.00019178,2]
[332654871,1721406431306,-500.0,0.00019178,2]
[332654872,1721406431327,-502.81926486,0.00019178,2]
[332654873,1721406431349,-500.0,0.00019178,2]
[332654874,1721406431370,-508.40747236,0.00019178,2]
[332654875,1721406431391,-500.0,0.00019178,2]
[332654876,1721406431411,-500.0,0.00019178,2]
[332654877,1721406431431,-500.0,0.00019178,2]
[332654878,1721406431452,-500.0,0.00019178,2]
[332654879,1721406431474,-503.91948572,0.00019178,2]
[332654880,1721406431495,-500.0,0.00019178,2]
[332654881,1721406431516,-500.0,0.00019178,2]
[332654882,1721406431537,-551.98589564,0.00019178,2]
[332654883,1721406431562,-601.4404759,0.00019178,2]
[332654884,1721406431583,-500.0,0.00019178,2]
[332654885,1721406431605,-505.00026679,0.00019178,2]
[332654886,1721406431626,-500.0,0.00019178,2]
[332654887,1721406431648,-377.03958598,0.00019178,2]
[332654888,1721406431670,-500.0,0.00019178,2]
[332654889,1721406431693,-516.95774121,0.00019178,2]
[332654890,1721406431717,-500.0,0.00019178,2]
[332654891,1721406431740,-506.06547036,0.00019178,2]
[332654892,1721406431761,-500.0,0.00019178,2]
[332654893,1721406431782,-500.0,0.00019178,2]
[332654894,1721406431804,-500.0,0.00019178,2]
[332654895,1721406431826,-500.0,0.00019178,2]
[332654896,1721406431849,-304.49794854,0.00019178,2]
[332654897,1721406431871,-500.0,0.00019178,2]
[332654898,1721406431892,-500.0,0.00019178,2]
[332654899,1721406431914,-500.0,0.00019178,2]
[332654900,1721406431935,-500.0,0.00019178,2]
[332654901,1721406431957,-500.0,0.00019178,2]
[332654902,1721406431981,-504.50586564,0.00019178,2]
[332654903,1721406432002,-500.0,0.00019178,2]
[332654904,1721406432023,-514.54875023,0.00019178,2]
[332654905,1721406432045,-500.0,0.00019178,2]
[332654906,1721406432066,-500.0,0.00019178,2]
[332654907,1721406432088,-500.0,0.00019178,2]
[332654908,1721406432109,-500.0,0.00019178,2]
[332654909,1721406432130,-580.55739457,0.00019178,2]
[332654910,1721406432151,-500.0,0.00019178,2]
[332654911,1721406432172,-500.0,0.00019178,2]
[332654912,1721406432203,-500.0,0.00019178,2]
[332654913,1721406432234,-500.0,0.00019178,2]
[332654914,1721406432256,-427.41003358,0.00019178,2]
[332654915,1721406432280,-500.0,0.00019178,2]
[332654916,1721406432303,-500.0,0.00019178,2]
[332654917,1721406432327,-500.0,0.00019178,2]
[332654918,1721406432350,-500.0,0.00019178,2]
[332654919,1721406432372,-500.03405891,0.00019178,2]
[332654920,1721406432394,-500.0,0.00019178,2]
[332654921,1721406432416,-500.0,0.00019178,2]
[332654922,1721406432439,-500.0,0.00019178,2]
[332654923,1721406432465,-500.0,0.00019178,2]
[332654924,1721406432489,-500.0,0.00019178,2]
[332654925,1721406432799,-500.0,0.00019178,2]
[332654926,1721406432821,-500.0,0.00019178,2]
[332654927,1721406432842,-500.0,0.00019178,2]
[332654928,1721406432864,-501.95108344,0.00019178,2]
[332654929,1721406432886,-500.0,0.00019178,2]
[332654930,1721406432908,-513.01463316,0.00019178,2]
[332654931,1721406432929,-500.0,0.00019178,2]
[332654932,1721406432949,-500.0,0.00019178,2]
[332654933,1721406432976,-9665.18,0.00019178,2]
[332654934,1721406432998,-9665.18,0.00019178,2]
[332654935,1721406433024,-9665.18,0.00019178,2]
[332654936,1721406433047,-9665.18,0.00019178,2]
[332654937,1721406433071,-9665.18,0.00019178,2]
[332654938,1721406433094,-9665.18,0.00019178,2]
[332654939,1721406433116,-9665.18,0.00019178,2]
[332654940,1721406433143,-9665.18,0.00019178,2]
[332654941,1721406433165,-9665.18,0.00019178,2]
[332654942,1721406433188,-9665.18,0.00019178,2]
[332654943,1721406433211,-504.46940117,0.00019178,2]
[332654944,1721406433235,-9665.18,0.00019178,2]
[332654945,1721406433259,-9665.18,0.00019178,2]
[332654946,1721406433282,-9665.18,0.00019178,2]
[332654947,1721406433304,-9665.18,0.00019178,2]
[332654948,1721406433327,-9665.18,0.00019178,2]
[332654949,1721406433349,-507.31851603,0.00019178,2]
[332654950,1721406433372,-9665.18,0.00019178,2]
[332654951,1721406433395,-9665.18,0.00019178,2]
[332654952,1721406433418,-500.0,0.00019178,2]
[332654953,1721406433440,-500.0,0.00019178,2]
[332654954,1721406433462,-511.36581756,0.00019178,2]
[332654955,1721406433485,-519.70908087,0.00019178,2]
[332654956,1721406433507,-484.64849958,0.00019178,2]
[332654957,1721406433530,-500.0,0.00019178,2]
[332654958,1721406433556,-500.0,0.00019178,2]
[332654959,1721406433578,-500.0,0.00019178,2]
[332654960,1721406433602,-500.0,0.00019178,2]
[332654961,1721406433626,-500.0,0.00019178,2]
[332654962,1721406433650,-500.0,0.00019178,2]
[332654963,1721406433672,-500.0,0.00019178,2]
[332654964,1721406433694,-510.02058695,0.00019178,2]
[332654965,1721406433717,-510.35310677,0.00019178,2]
[332654966,1721406433740,-500.0,0.00019178,2]
[332654967,1721406433762,-340.63638274,0.00019178,2]
[332654968,1721406433786,-500.0,0.00019178,2]
[332654969,1721406433809,-500.0,0.00019178,2]
[332654970,1721406433832,-507.61720522,0.00019178,2]
[332654971,1721406433855,-507.90155679,0.00019178,2]
[332654972,1721406433878,-500.0,0.00019178,2]
[332654973,1721406433900,-502.04515639,0.00019178,2]
[332654974,1721406433923,-565.48177985,0.00019178,2]
[332654975,1721406433946,-500.0,0.00019178,2]
[332654976,1721406433971,-500.0,0.00019178,2]
[332654977,1721406433994,-607.16670657,0.00019178,2]
[332654978,1721406434017,-500.0,0.00019178,2]
[332654979,1721406434040,-504.38908166,0.00019178,2]
[332654980,1721406434064,-500.0,0.00019178,2]
[332654981,1721406434088,-565.28842731,0.00019178,2]
[332654982,1721406434113,-500.0,0.00019178,2]
[332654983,1721406434137,-580.60808495,0.00019178,2]
[332654984,1721406434159,-500.0,0.00019178,2]
[332654985,1721406434182,-507.14629811,0.00019178,2]
[332654986,1721406434205,-465.58662141,0.00019178,2]
[332654987,1721406434229,-500.0,0.00019178,2]
[332654988,1721406434252,-500.0,0.00019178,2]
[332654989,1721406434275,-274.27752618,0.00019178,2]
[332654990,1721406434299,-500.0,0.00019178,2]
[332654991,1721406434322,-500.0,0.00019178,2]
[332654992,1721406434344,-633.06855069,0.00019178,2]
[332654993,1721406434367,-500.0,0.00019178,2]
[332654994,1721406434388,-500.0,0.00019178,2]
[332654995,1721406434412,-500.0,0.00019178,2]
[332654996,1721406434436,-500.0,0.00019178,2]
[332654997,1721406434459,-534.96369356,0.00019178,2]
[332654998,1721406434483,-500.0,0.00019178,2]
[332654999,1721406434505,-500.0,0.00019178,2]
[332655000,1721406434528,-500.0,0.00019178,2]
[332655001,1721406434552,-506.94947357,0.00019178,2]
[332655002,1721406434578,-500.0,0.00019178,2]
[332655003,1721406434621,-500.0,0.00019178,2]
[332655004,1721406434646,-500.0,0.00019178,2]
[332655005,1721406434670,-500.0,0.00019178,2]
[332655006,1721406434693,-546.23721251,0.00019178,2]
[332655007,1721406434720,-502.98558733,0.00019178,2]
[332655008,1721406434744,-500.0,0.00019178,2]
[332655009,1721406434769,-576.81048906,0.00019178,2]
[332655010,1721406434792,-500.0,0.00019178,2]
[332655011,1721406434815,-502.2839365,0.00019178,2]
[332655012,1721406434839,-500.0,0.00019178,2]
[332655013,1721406434862,-518.74191654,0.00019178,2]
[332655014,1721406434886,-446.66880755,0.00019178,2]
[332655015,1721406434910,-505.79602796,0.00019178,2]
[332655016,1721406434934,-515.23803061,0.00019178,2]
[332655017,1721406434958,-500.0,0.00019178,2]
[332655018,1721406434983,-500.0,0.00019178,2]
[332655019,1721406435008,-506.21244331,0.00019178,2]
[332655020,1721406435033,-500.0,0.00019178,2]
[332655021,1721406435057,-500.0,0.00019178,2]
[332655022,1721406435081,-501.77429152,0.00019178,2]
[332655023,1721406435105,-505.75457549,0.00019178,2]
[332655024,1721406435129,-503.226806,0.00019178,2]
[332655025,1721406435152,-500.0,0.00019178,2]
[332655026,1721406435176,-500.0,0.00019178,2]
[332655027,1721406435199,-500.0,0.00019178,2]
[332655028,1721406435224,-502.13471355,0.00019178,2]
[332655029,1721406435246,-505.61532738,0.00019178,2]
[332655030,1721406435269,-504.87720688,0.00019178,2]
[332655031,1721406435292,-500.0,0.00019178,2]
[332655032,1721406435315,-500.0,0.00019178,2]
[332655033,1721406435338,-500.0,0.00019178,2]
[332655034,1721406435361,-500.0,0.00019178,2]
[332655035,1721406435385,-500.0,0.00019178,2]
[332655036,1721406435409,-500.0,0.00019178,2]
[332655037,1721406435431,-500.0,0.00019178,2]
[332655038,1721406435457,-500.0,0.00019178,2]
[332655039,1721406435482,-500.0,0.00019178,2]
[332655040,1721406435504,-642.38857686,0.00019178,2]
[332655041,1721406435528,-500.0,0.00019178,2]
[332655042,1721406435550,-504.89738134,0.00019178,2]
[332655043,1721406435576,-500.0,0.00019178,2]
[332655044,1721406435601,-500.9244859,0.00019178,2]
[332655045,1721406435625,-500.0,0.00019178,2]
[332655046,1721406435650,-507.0126831,0.00019178,2]
[332655047,1721406435672,-500.0,0.00019178,2]
[332655048,1721406435693,-500.0,0.00019178,2]
[332655049,1721406435718,-263.12112292,0.00019178,2]
[332655050,1721406435744,-501.48064604,0.00019178,2]
[332655051,1721406435767,-517.33113335,0.00019178,2]
[332655052,1721406435790,-500.0,0.00019178,2]
[332655053,1721406435813,-504.76180352,0.00019178,2]
[332655054,1721406435838,-500.0,0.00019178,2]
[332655055,1721406435861,-500.0,0.00019178,2]
[332655056,1721406435885,-500.0,0.00019178,2]
[332655057,1721406435908,-500.0,0.00019178,2]
[332655058,1721406435931,-504.71118476,0.00019178,2]
[332655059,1721406435953,-500.0,0.00019178,2]
[332655060,1721406435980,-500.0,0.00019178,2]
[332655061,1721406436003,-500.0,0.00019178,2]
[332655062,1721406436031,-500.0,0.00019178,2]
[332655063,1721406436054,-345.49670736,0.00019178,2]
[332655064,1721406436076,-513.56455746,0.00019178,2]
[332655065,1721406436098,-500.0,0.00019178,2]
[332655066,1721406436121,-508.04339968,0.00019178,2]
[332655067,1721406436144,-500.0,0.00019178,2]
[332655068,1721406436167,-500.0,0.00019178,2]
[332655069,1721406436189,-504.00862475,0.00019178,2]
[332655070,1721406436211,-504.12546019,0.00019178,2]
[332655071,1721406436234,-531.63994379,0.00019178,2]
[332655072,1721406436256,-500.0,0.00019178,2]
[332655073,1721406436279,-185.40252839,0.00019178,2]
[332655074,1721406436302,-500.0,0.00019178,2]
[332655075,1721406436324,-508.06185736,0.00019178,2]
[332655076,1721406436346,-500.0,0.00019178,2]
[332655077,1721406436368,-500.0,0.00019178,2]
[332655078,1721406436390,-500.0,0.00019178,2]
[332655079,1721406436412,-501.97715973,0.00019178,2]
[332655080,1721406436435,-500.0,0.00019178,2]
[332655081,1721406436457,-500.0,0.00019178,2]
[332655082,1721406436482,-500.0,0.00019178,2]
[332655083,1721406436503,-500.0,0.00019178,2]
[332655084,1721406436527,-500.0,0.00019178,2]
[332655085,1721406436549,-500.0,0.00019178,2]
[332655086,1721406436576,-500.0,0.00019178,2]
[332655087,1721406436601,-500.0,0.00019178,2]
[332655088,1721406436624,-500.0,0.00019178,2]
[332655089,1721406436650,-500.0,0.00019178,2]
[332655090,1721406436671,-270.40072535,0.00019178,2]
[332655091,1721406436693,-500.0,0.00019178,2]
[332655092,1721406436715,-500.0,0.00019178,2]
[332655093,1721406436739,-500.0,0.00019178,2]
[332655094,1721406436763,-500.0,0.00019178,2]
[332655095,1721406436784,-500.0,0.00019178,2]
[332655096,1721406436806,-500.0,0.00019178,2]
[332655097,1721406436829,-500.50089956,0.00019178,2]
[332655098,1721406436851,-500.0,0.00019178,2]
[332655099,1721406436875,-500.0,0.00019178,2]
[332655100,1721406436897,-500.0,0.00019178,2]
[332655101,1721406436920,-500.0,0.00019178,2]
[332655102,1721406437204,-500.0,0.00019178,2]
[332655103,1721406437230,-500.0,0.00019178,2]
[332655104,1721406437252,-528.74376059,0.00019178,2]
[332655105,1721406437275,-500.0,0.00019178,2]
[332655106,1721406437297,-504.83746317,0.00019178,2]
[332655107,1721406437319,-500.0,0.00019178,2]
[332655108,1721406437342,-500.0,0.00019178,2]
[332655109,1721406437364,-507.04945538,0.00019178,2]
[332655110,1721406437386,-500.0,0.00019178,2]
[332655111,1721406437408,-500.0,0.00019178,2]
[332655112,1721406437430,-500.0,0.00019178,2]
[332655113,1721406437453,-500.0,0.00019178,2]
[332655114,1721406437477,-500.0,0.00019178,2]
[332655115,1721406437499,-500.0,0.00019178,2]
[332655116,1721406437521,-500.0,0.00019178,2]
[332655117,1721406437543,-502.27084802,0.00019178,2]
[332655118,1721406437570,-500.0,0.00019178,2]
[332655119,1721406437592,-500.0,0.00019178,2]
[332655120,1721406437618,-500.0,0.00019178,2]
[332655121,1721406437644,-500.0,0.00019178,2]
[332655122,1721406437667,-508.78910911,0.00019178,2]
[332655123,1721406437690,-500.0,0.00019178,2]
[332655124,1721406437713,-500.0,0.00019178,2]
[332655125,1721406437737,-500.0,0.00019178,2]
[332655126,1721406437759,-510.68822699,0.00019178,2]
[332655127,1721406437780,-500.0,0.00019178,2]
[332655128,1721406437801,-500.0,0.00019178,2]
[332655129,1721406437822,-500.0,0.00019178,2]
[332655130,1721406437846,-239.65300197,0.00019178,2]
[332655131,1721406437868,-500.0,0.00019178,2]
[332655132,1721406437890,-500.0,0.00019178,2]
[332655133,1721406437912,-500.0,0.00019178,2]
[332655134,1721406437934,-500.0,0.00019178,2]
[332655135,1721406437956,-500.0,0.00019178,2]
[332655136,1721406437980,-500.0,0.00019178,2]
[332655137,1721406438002,-500.0,0.00019178,2]
[332655138,1721406438026,-507.67137808,0.00019178,2]
[332655139,1721406438054,-511.53344537,0.00019178,2]
[332655140,1721406438076,-500.0,0.00019178,2]
[332655141,1721406438100,-536.43472637,0.00019178,2]
[332655142,1721406438123,-500.0,0.00019178,2]
[332655143,1721406438146,-536.19923691,0.00019178,2]
[332655144,1721406438168,-502.93090763,0.00019178,2]
[332655145,1721406438191,-500.0,0.00019178,2]
[332655146,1721406438214,-500.0,0.00019178,2]
[332655147,1721406438238,-500.0,0.00019178,2]
[332655148,1721406438259,-500.0,0.00019178,2]
[332655149,1721406438280,-500.0,0.00019178,2]
[332655150,1721406438303,-507.02756671,0.00019178,2]
[332655151,1721406438325,-500.0,0.00019178,2]
[332655152,1721406438349,-500.0,0.00019178,2]
[332655153,1721406438371,-500.0,0.00019178,2]
[332655154,1721406438394,-521.71487689,0.00019178,2]
[332655155,1721406438416,-500.0,0.00019178,2]
[332655156,1721406438438,-500.0,0.00019178,2]
[332655157,1721406438460,-512.03489685,0.00019178,2]
[332655158,1721406438485,-500.0,0.00019178,2]
[332655159,1721406438507,-561.86106778,0.00019178,2]
[332655160,1721406438529,-520.71047759,0.00019178,2]
[332655161,1721406438562,-500.0,0.00019178,2]
[332655162,1721406438584,-507.31838768,0.00019178,2]
[332655163,1721406438608,-500.0,0.00019178,2]
[332655164,1721406438631,-513.76244078,0.00019178,2]
[332655165,1721406438656,-513.07080278,0.00019178,2]
[332655166,1721406438678,-500.0,0.00019178,2]
[332655167,1721406438701,-502.09851336,0.00019178,2]
[332655168,1721406438725,-505.6750581,0.00019178,2]
[332655169,1721406438748,-500.0,0.00019178,2]
[332655170,1721406438770,-503.27026039,0.00019178,2]
[332655171,1721406438792,-504.35437939,0.00019178,2]
[332655172,1721406438815,-500.53189331,0.00019178,2]
[332655173,1721406438837,-500.0,0.00019178,2]
[332655174,1721406438860,-500.0,0.00019178,2]
[332655175,1721406438883,-527.16860966,0.00019178,2]
[332655176,1721406438906,-500.0,0.00019178,2]
[332655177,1721406438929,-500.0,0.00019178,2]
[332655178,1721406438952,-500.0,0.00019178,2]
[332655179,1721406438979,-505.75979001,0.00019178,2]
[332655180,1721406439001,-500.0,0.00019178,2]
[332655181,1721406439026,-577.0953925,0.00019178,2]
[332655182,1721406439051,-264.46228017,0.00019178,2]
[332655183,1721406439073,-500.0,0.00019178,2]
[332655184,1721406439094,-500.0,0.00019178,2]
[332655185,1721406439115,-595.7818958,0.00019178,2]
[332655186,1721406439138,-500.0,0.00019178,2]
[332655187,1721406439159,-500.0,0.00019178,2]
[332655188,1721406439181,-500.0,0.00019178,2]
[332655189,1721406439207,-500.0,0.00019178,2]
[332655190,1721406439230,-500.0,0.00019178,2]
[332655191,1721406439252,-500.0,0.00019178,2]
[332655192,1721406439274,-500.0,0.00019178,2]
[332655193,1721406439296,-500.0,0.00019178,2]
[332655194,1721406439318,-384.27853086,0.00019178,2]
[332655195,1721406439341,-500.0,0.00019178,2]
[332655196,1721406439365,-500.0,0.00019178,2]
[332655197,1721406439386,-502.22601755,0.00019178,2]
[332655198,1721406439409,-620.53256862,0.00019178,2]
[332655199,1721406439431,-500.0,0.00019178,2]
[332655200,1721406439452,-500.0,0.00019178,2]
[332655201,1721406439474,-500.0,0.00019178,2]
[332655202,1721406439495,-556.38999052,0.00019178,2]
[332655203,1721406439517,-500.0,0.00019178,2]
[332655204,1721406439539,-511.74821432,0.00019178,2]
[332655205,1721406439570,-509.32613113,0.00019178,2]
[332655206,1721406439595,-500.0,0.00019178,2]
[332655207,1721406439618,-500.0,0.00019178,2]
[332655208,1721406439640,-500.0,0.00019178,2]
[332655209,1721406439664,-409.42811845,0.00019178,2]
[332655210,1721406439691,-500.0,0.00019178,2]
[332655211,1721406439714,-500.0,0.00019178,2]
[332655212,1721406439737,-500.0,0.00019178,2]
[332655213,1721406439759,-500.0,0.00019178,2]
[332655214,1721406439781,-501.06330563,0.00019178,2]
[332655215,1721406439803,-500.0,0.00019178,2]
[332655216,1721406439825,-500.0,0.00019178,2]
[332655217,1721406439848,-500.0,0.00019178,2]
[332655218,1721406439869,-500.0,0.00019178,2]
[332655219,1721406439893,-500.0,0.00019178,2]
[332655220,1721406439916,-501.61520268,0.00019178,2]
[332655221,1721406439938,-512.18271713,0.00019178,2]
[332655222,1721406439961,-500.0,0.00019178,2]
[332655223,1721406439984,-500.0,0.00019178,2]
[332655224,1721406440006,-602.43340232,0.00019178,2]
[332655225,1721406440029,-501.02230046,0.00019178,2]
[332655226,1721406440057,-500.0,0.00019178,2]
[332655227,1721406440079,-507.38952255,0.00019178,2]
[332655228,1721406440100,-500.0,0.00019178,2]
[332655229,1721406440122,-500.0,0.00019178,2]
[332655230,1721406440143,-500.0,0.00019178,2]
[332655231,1721406440165,-500.0,0.00019178,2]
[332655232,1721406440186,-500.0,0.00019178,2]
[332655233,1721406440208,-500.0,0.00019178,2]
[332655234,1721406440232,-500.0,0.00019178,2]
[332655235,1721406440253,-502.38933794,0.00019178,2]
[332655236,1721406440274,-500.0,0.00019178,2]
[332655237,1721406440297,-500.0,0.00019178,2]
[332655238,1721406440319,-500.0,0.00019178,2]
[332655239,1721406440340,-501.1559506,0.00019178,2]
[332655240,1721406440364,-500.0,0.00019178,2]
[332655241,1721406440385,-500.0,0.00019178,2]
[332655242,1721406440407,-502.74670445,0.00019178,2]
[332655243,1721406440430,-500.0,0.00019178,2]
[332655244,1721406440453,-507.26594038,0.00019178,2]
[332655245,1721406440474,-500.0,0.00019178,2]
[332655246,1721406440495,-216.59917431,0.00019178,2]
[332655247,1721406440518,-500.0,0.00019178,2]
[332655248,1721406440540,-538.33640205,0.00019178,2]
[332655249,1721406440566,-498.87232176,0.00019178,2]
[332655250,1721406440587,-500.0,0.00019178,2]
[332655251,1721406440611,-508.75229527,0.00019178,2]
[332655252,1721406440634,-500.0,0.00019178,2]
[332655253,1721406440656,-500.0,0.00019178,2]
[332655254,1721406440677,-502.26918933,0.00019178,2]
[332655255,1721406440699,-505.14302766,0.00019178,2]
[332655256,1721406440719,-501.82752301,0.00019178,2]
[332655257,1721406440742,-500.0,0.00019178,2]
[332655258,1721406440763,-502.61710115,0.00019178,2]
[332655259,1721406440784,-500.27965624,0.00019178,2]
[332655260,1721406440805,-500.55108454,0.00019178,2]
[332655261,1721406440826,-500.0,0.00019178,2]
[332655262,1721406440848,-500.0,0.00019178,2]
[332655263,1721406440869,-502.51675599,0.00019178,2]
[332655264,1721406440891,-504.4689577,0.00019178,2]
[332655265,1721406440913,-323.41228725,0.00019178,2]
[332655266,1721406440935,-507.46979898,0.00019178,2]
[332655267,1721406440956,-500.0,0.00019178,2]
[332655268,1721406440978,-500.0,0.00019178,2]
[332655269,1721406441000,-500.0,0.00019178,2]
[332655270,1721406441021,-500.0,0.00019178,2]
[332655271,1721406441042,-502.37985391,0.00019178,2]
[332655272,1721406441063,-517.63525834,0.00019178,2]
[332655273,1721406441085,-503.4498096,0.00019178,2]
[332655274,1721406441106,-500.0,0.00019178,2]
[332655275,1721406441127,-500.0,0.00019178,2]
[332655276,1721406441149,-500.0,0.00019178,2]
[332655277,1721406441169,-500.0,0.00019178,2]
[332655278,1721406441190,-624.01,0.00019178,2]
[332655279,1721406441213,-624.01,0.00019178,2]
[332655280,1721406441404,-500.0,0.00019178,2]
[332655281,1721406441469,-624.01,0.00019178,2]
[332655282,1721406441493,-624.01,0.00019178,2]
[332655283,1721406441515,-624.01,0.00019178,2]
[332655284,1721406441536,-500.0,0.00019178,2]
[332655285,1721406441559,-624.01,0.00019178,2]
[332655286,1721406441581,-624.01,0.00019178,2]
[332655287,1721406441603,-624.01,0.00019178,2]
[332655288,1721406441625,-500.0,0.00019178,2]
[332655289,1721406441648,-624.01,0.00019178,2]
[332655290,1721406441669,-501.14957988,0.00019178,2]
[332655291,1721406441691,-624.01,0.00019178,2]
[332655292,1721406441712,-624.01,0.00019178,2]
[332655293,1721406441735,-624.01,0.00019178,2]
[332655294,1721406441756,-624.01,0.00019178,2]
[332655295,1721406441777,-500.0,0.00019178,2]
[332655296,1721406441798,-624.01,0.00019178,2]
[332655297,1721406441819,-624.01,0.00019178,2]
[332655298,1721406441839,-624.01,0.00019178,2]
[332655299,1721406441860,-624.01,0.00019178,2]
[332655300,1721406441881,-500.0,0.00019178,2]
[332655301,1721406441902,-500.0,0.00019178,2]
[332655302,1721406441923,-500.0,0.00019178,2]
[332655303,1721406441944,-500.0,0.00019178,2]
[332655304,1721406441966,-500.0,0.00019178,2]
[332655305,1721406441988,-500.0,0.00019178,2]
[332655306,1721406442009,-500.0,0.00019178,2]
[332655307,1721406442030,-500.0,0.00019178,2]
[332655308,1721406442052,-162.50971019,0.00019178,2]
[332655309,1721406442074,-500.0,0.00019178,2]
[332655310,1721406442095,-503.81578247,0.00019178,2]
[332655311,1721406442116,-500.0,0.00019178,2]
[332655312,1721406442137,-522.41382666,0.00019178,2]
[332655313,1721406442159,-500.0,0.00019178,2]
[332655314,1721406442187,-500.0,0.00019178,2]
[332655315,1721406442209,-500.0,0.00019178,2]
[332655316,1721406442232,-500.0,0.00019178,2]
[332655317,1721406442256,-291.67007413,0.00019178,2]
[332655318,1721406442278,-500.0,0.00019178,2]
[332655319,1721406442300,-500.0,0.00019178,2]
[332655320,1721406442320,-500.0,0.00019178,2]
[332655321,1721406442342,-502.29571125,0.00019178,2]
[332655322,1721406442364,-500.0,0.00019178,2]
[332655323,1721406442386,-500.0,0.00019178,2]
[332655324,1721406442408,-500.0,0.00019178,2]
[332655325,1721406442429,-500.0,0.00019178,2]
[332655326,1721406442452,-500.0,0.00019178,2]
[332655327,1721406442474,-500.49014017,0.00019178,2]
[332655328,1721406442495,-500.0,0.00019178,2]
[332655329,1721406442516,-500.0,0.00019178,2]
[332655330,1721406442537,-500.0,0.00019178,2]
[332655331,1721406442562,-502.7411984,0.00019178,2]
[332655332,1721406442583,-502.49638659,0.00019178,2]
[332655333,1721406442605,-500.0,0.00019178,2]
[332655334,1721406442628,-500.0,0.00019178,2]
[332655335,1721406442653,-500.0,0.00019178,2]
[332655336,1721406442674,-506.61542317,0.00019178,2]
[332655337,1721406442697,-500.0,0.00019178,2]
[332655338,1721406442719,-500.0,0.00019178,2]
[332655339,1721406442745,-500.0,0.00019178,2]
[332655340,1721406442769,-500.0,0.00019178,2]
[332655341,1721406442791,-500.0,0.00019178,2]
[332655342,1721406442813,-500.0,0.00019178,2]
[332655343,1721406442835,-500.0,0.00019178,2]
[332655344,1721406442857,-500.0,0.00019178,2]
[332655345,1721406442880,-500.0,0.00019178,2]